[Event "Titled Tuesday Blitz May 10 Late 2022"]
[White "Paravyan, David"]
[Black "Jones, Gawain C B"]
[WhiteFideId "4194985"]
[BlackFideId "409561"]
[WhiteElo "2569"]
[BlackElo "2657"]
[Result "1-0"]
[Round "10"]
[TimeControl "180+1"]
[Date "2022.05.10"]
[WhiteClock "0:00:48"]
[BlackClock "0:00:15"]

1. e4 {[%clk 0:03:00]}  Nf6 {[%clk 0:02:59]} 2. e5 {[%clk 0:02:57]}  Nd5 {[%clk 0:02:59]} 3. d4 {[%clk 0:02:58]}  d6 {[%clk 0:03:00]} 4. c4 {[%clk 0:02:57]}  Nb6 {[%clk 0:02:59]} 5. f4 {[%clk 0:02:58]}  g5 {[%clk 0:02:59]} 6. Nf3 {[%clk 0:02:36]}  g4 {[%clk 0:02:57]} 7. Ng5 {[%clk 0:02:36]}  h6 {[%clk 0:02:44]} 8. Ne4 {[%clk 0:02:36]}  dxe5 {[%clk 0:02:43]} 9. fxe5 {[%clk 0:02:34]}  Nc6 {[%clk 0:02:40]} 10. Be3 {[%clk 0:02:34]}  Bf5 {[%clk 0:02:28]} 11. Nbc3 {[%clk 0:02:34]}  Bg7 {[%clk 0:02:13]} 12. Be2 {[%clk 0:02:33]}  e6 {[%clk 0:01:58]} 13. O-O {[%clk 0:02:31]}  h5 {[%clk 0:01:56]} 14. Kh1 {[%clk 0:02:09]}  h4 {[%clk 0:01:42]} 15. Bxg4 {[%clk 0:02:07]}  Bg6 {[%clk 0:01:35]} 16. c5 {[%clk 0:01:53]}  Nc4 {[%clk 0:01:25]} 17. Bg1 {[%clk 0:01:44]}  h3 {[%clk 0:01:12]} 18. gxh3 {[%clk 0:01:39]}  Qd7 {[%clk 0:00:33]} 19. Qe2 {[%clk 0:01:36]}  N4xe5 {[%clk 0:00:14]} 20. dxe5 {[%clk 0:01:35]}  Nxe5 {[%clk 0:00:15]} 21. Bf3 {[%clk 0:01:04]}  Nxf3 {[%clk 0:00:15]} 22. Qxf3 {[%clk 0:01:04]}  O-O-O {[%clk 0:00:15]} 23. Rad1 {[%clk 0:00:55]}  Qe7 {[%clk 0:00:15]} 24. c6 {[%clk 0:00:49]}  b6 {[%clk 0:00:15]} 25. Qe2 {[%clk 0:00:48]} 1-0


[Site "https://www.chess.com"]

[Event "Titled Tuesday Blitz May 10 Late 2022"]
[White "Peralta, Eduardo"]
[Black "Dilmukhametov, Artur"]
[WhiteFideId "3700062"]
[BlackFideId "24179922"]
[WhiteElo "2125"]
[BlackElo "2206"]
[Result "1-0"]
[Round "10"]
[TimeControl "180+1"]
[Date "2022.05.10"]
[WhiteClock "0:00:05"]
[BlackClock "0:00:04"]

1. Nf3 {[%clk 0:03:00]}  d5 {[%clk 0:02:57]} 2. g3 {[%clk 0:03:00]}  Nf6 {[%clk 0:02:57]} 3. Bg2 {[%clk 0:03:00]}  c6 {[%clk 0:02:58]} 4. O-O {[%clk 0:03:00]}  Bg4 {[%clk 0:02:58]} 5. d4 {[%clk 0:02:58]}  Nbd7 {[%clk 0:02:58]} 6. h3 {[%clk 0:02:58]}  Bh5 {[%clk 0:02:57]} 7. Bf4 {[%clk 0:02:58]}  e6 {[%clk 0:02:57]} 8. Nbd2 {[%clk 0:02:57]}  Be7 {[%clk 0:02:55]} 9. c4 {[%clk 0:02:57]}  a6 {[%clk 0:02:54]} 10. Rc1 {[%clk 0:02:55]}  O-O {[%clk 0:02:54]} 11. a3 {[%clk 0:02:55]}  Rc8 {[%clk 0:02:46]} 12. c5 {[%clk 0:02:54]}  Bg6 {[%clk 0:02:43]} 13. Nh4 {[%clk 0:02:51]}  Be4 {[%clk 0:02:31]} 14. f3 {[%clk 0:02:50]}  Bg6 {[%clk 0:02:31]} 15. Nxg6 {[%clk 0:02:50]}  hxg6 {[%clk 0:02:32]} 16. b4 {[%clk 0:02:46]}  Nh5 {[%clk 0:02:30]} 17. Qe1 {[%clk 0:02:31]}  Nxf4 {[%clk 0:02:11]} 18. gxf4 {[%clk 0:02:28]}  Bh4 {[%clk 0:02:11]} 19. Qd1 {[%clk 0:02:26]}  g5 {[%clk 0:02:12]} 20. fxg5 {[%clk 0:02:23]}  Qxg5 {[%clk 0:02:12]} 21. f4 {[%clk 0:02:19]}  Qh6 {[%clk 0:02:04]} 22. e3 {[%clk 0:02:19]}  g6 {[%clk 0:01:37]} 23. Qg4 {[%clk 0:02:11]}  Nf6 {[%clk 0:01:33]} 24. Qf3 {[%clk 0:02:10]}  Kg7 {[%clk 0:01:29]} 25. a4 {[%clk 0:02:08]}  Rh8 {[%clk 0:01:27]} 26. Rb1 {[%clk 0:02:06]}  Nh5 {[%clk 0:01:26]} 27. b5 {[%clk 0:01:55]}  axb5 {[%clk 0:01:27]} 28. axb5 {[%clk 0:01:55]}  Ng3 {[%clk 0:01:28]} 29. Rfd1 {[%clk 0:01:46]}  Nf5 {[%clk 0:01:28]} 30. Nf1 {[%clk 0:01:43]}  Bf6 {[%clk 0:01:23]} 31. Ra1 {[%clk 0:01:39]}  Nh4 {[%clk 0:01:20]} 32. Qg4 {[%clk 0:01:37]}  Nxg2 {[%clk 0:01:19]} 33. Kxg2 {[%clk 0:01:36]}  cxb5 {[%clk 0:01:09]} 34. Ra7 {[%clk 0:01:35]}  Ra8 {[%clk 0:01:08]} 35. Rxb7 {[%clk 0:01:32]}  Ra2+ {[%clk 0:01:08]} 36. Rd2 {[%clk 0:01:32]}  Rha8 {[%clk 0:00:54]} 37. Qxe6 {[%clk 0:01:31]}  Rxd2+ {[%clk 0:00:51]} 38. Nxd2 {[%clk 0:01:31]}  Rf8 {[%clk 0:00:50]} 39. c6 {[%clk 0:01:28]}  Qh4 {[%clk 0:00:48]} 40. Nf3 {[%clk 0:01:20]}  Qh8 {[%clk 0:00:44]} 41. Qxd5 {[%clk 0:01:20]}  b4 {[%clk 0:00:40]} 42. Qb3 {[%clk 0:01:18]}  g5 {[%clk 0:00:32]} 43. fxg5 {[%clk 0:01:17]}  Bd8 {[%clk 0:00:32]} 44. Qxb4 {[%clk 0:01:15]}  Re8 {[%clk 0:00:25]} 45. Qc4 {[%clk 0:01:13]}  Qh5 {[%clk 0:00:25]} 46. Qc3 {[%clk 0:01:02]}  Bxg5 {[%clk 0:00:23]} 47. d5+ {[%clk 0:01:01]}  Bf6 {[%clk 0:00:24]} 48. Qd3 {[%clk 0:00:56]}  Ra8 {[%clk 0:00:22]} 49. Qc2 {[%clk 0:00:28]}  Qxd5 {[%clk 0:00:15]} 50. Rd7 {[%clk 0:00:22]}  Qe6 {[%clk 0:00:10]} 51. Rd2 {[%clk 0:00:19]}  Qxe3 {[%clk 0:00:08]} 52. c7 {[%clk 0:00:19]}  Qe6 {[%clk 0:00:04]} 53. Re2 {[%clk 0:00:18]}  Qd5 {[%clk 0:00:05]} 54. Rd2 {[%clk 0:00:18]}  Qe6 {[%clk 0:00:04]} 55. Qc5 {[%clk 0:00:15]}  Rc8 {[%clk 0:00:03]} 56. Rc2 {[%clk 0:00:15]}  Qe4 {[%clk 0:00:02]} 57. Rc1 {[%clk 0:00:09]}  Kh7 {[%clk 0:00:01]} 58. Qc2 {[%clk 0:00:07]}  Rg8+ {[%clk 0:00:01]} 59. Kf2 {[%clk 0:00:06]}  Qxc2+ {[%clk 0:00:02]} 60. Rxc2 {[%clk 0:00:07]}  Rc8 {[%clk 0:00:02]} 61. Ke3 {[%clk 0:00:06]}  Kg6 {[%clk 0:00:03]} 62. Ke4 {[%clk 0:00:07]}  Re8+ {[%clk 0:00:03]} 63. Kd5 {[%clk 0:00:07]}  Rc8 {[%clk 0:00:03]} 64. Kc6 {[%clk 0:00:07]}  Bd8 {[%clk 0:00:03]} 65. Kd7 {[%clk 0:00:07]}  Rxc7+ {[%clk 0:00:03]} 66. Rxc7 {[%clk 0:00:08]}  Bxc7 {[%clk 0:00:04]} 67. Kxc7 {[%clk 0:00:09]}  Kf5 {[%clk 0:00:05]} 68. Kd6 {[%clk 0:00:05]}  Kf4 {[%clk 0:00:05]} 69. Ng1 {[%clk 0:00:05]}  Kg3 {[%clk 0:00:05]} 70. Ke5 {[%clk 0:00:05]}  Kg2 {[%clk 0:00:04]} 71. Kf6 {[%clk 0:00:05]} 1-0


[Site "https://www.chess.com"]

[Event "Titled Tuesday Blitz May 10 Late 2022"]
[White "Postny, Evgeny"]
[Black "Alexiadis, Hristos"]
[WhiteFideId "2804344"]
[BlackFideId "4249623"]
[WhiteElo "2500"]
[BlackElo "2416"]
[Result "0-1"]
[Round "10"]
[TimeControl "180+1"]
[Date "2022.05.10"]
[WhiteClock "0:00:03"]
[BlackClock "0:00:26"]

1. e4 {[%clk 0:03:00]}  e6 {[%clk 0:02:59]} 2. d4 {[%clk 0:03:00]}  d5 {[%clk 0:02:59]} 3. Nd2 {[%clk 0:03:01]}  dxe4 {[%clk 0:02:59]} 4. Nxe4 {[%clk 0:03:01]}  Be7 {[%clk 0:02:59]} 5. Nf3 {[%clk 0:03:00]}  Nd7 {[%clk 0:03:00]} 6. Bd3 {[%clk 0:02:58]}  Ngf6 {[%clk 0:03:01]} 7. Ned2 {[%clk 0:02:54]}  b6 {[%clk 0:03:01]} 8. O-O {[%clk 0:02:53]}  Bb7 {[%clk 0:03:01]} 9. Nc4 {[%clk 0:02:49]}  O-O {[%clk 0:03:01]} 10. Qe2 {[%clk 0:02:47]}  c5 {[%clk 0:03:02]} 11. Rd1 {[%clk 0:02:45]}  Qc7 {[%clk 0:02:59]} 12. a4 {[%clk 0:02:28]}  Rac8 {[%clk 0:02:56]} 13. Bg5 {[%clk 0:02:18]}  h6 {[%clk 0:02:54]} 14. Bh4 {[%clk 0:02:15]}  Bxf3 {[%clk 0:02:52]} 15. Qxf3 {[%clk 0:02:15]}  cxd4 {[%clk 0:02:52]} 16. Re1 {[%clk 0:01:38]}  e5 {[%clk 0:02:50]} 17. Bxf6 {[%clk 0:01:32]}  Bxf6 {[%clk 0:02:48]} 18. b4 {[%clk 0:01:12]}  g6 {[%clk 0:02:42]} 19. h4 {[%clk 0:01:07]}  h5 {[%clk 0:02:36]} 20. Qg3 {[%clk 0:00:57]}  Qd8 {[%clk 0:01:37]} 21. Nd6 {[%clk 0:00:50]}  Rc6 {[%clk 0:01:36]} 22. Nxf7 {[%clk 0:00:43]}  Rxf7 {[%clk 0:01:31]} 23. Qxg6+ {[%clk 0:00:42]}  Rg7 {[%clk 0:01:32]} 24. Qxh5 {[%clk 0:00:41]}  Bxh4 {[%clk 0:01:03]} 25. Re4 {[%clk 0:00:34]}  Bg5 {[%clk 0:00:58]} 26. Qh3 {[%clk 0:00:20]}  Rh6 {[%clk 0:00:56]} 27. Qf5 {[%clk 0:00:20]}  Qf6 {[%clk 0:00:47]} 28. Qxf6 {[%clk 0:00:18]}  Rxf6 {[%clk 0:00:45]} 29. a5 {[%clk 0:00:18]}  Rf4 {[%clk 0:00:38]} 30. axb6 {[%clk 0:00:15]}  axb6 {[%clk 0:00:39]} 31. Ra8+ {[%clk 0:00:12]}  Kf7 {[%clk 0:00:37]} 32. Ra7 {[%clk 0:00:11]}  Ke6 {[%clk 0:00:34]} 33. Re1 {[%clk 0:00:08]}  Kd6 {[%clk 0:00:32]} 34. g3 {[%clk 0:00:08]}  Rff7 {[%clk 0:00:32]} 35. Be4 {[%clk 0:00:08]}  Bd2 {[%clk 0:00:28]} 36. Rea1 {[%clk 0:00:06]}  Bxb4 {[%clk 0:00:28]} 37. Ra8 {[%clk 0:00:05]}  Bc5 {[%clk 0:00:27]} 38. Rd8 {[%clk 0:00:04]}  d3 {[%clk 0:00:27]} 39. cxd3 {[%clk 0:00:03]}  Bxf2+ {[%clk 0:00:26]} 0-1


[Site "https://www.chess.com"]

[Event "Titled Tuesday Blitz May 10 Late 2022"]
[White "Pranav, V"]
[Black "Rustemov, Alexander"]
[WhiteFideId "25060783"]
[BlackFideId "4119002"]
[WhiteElo "2349"]
[BlackElo "2763"]
[Result "1-0"]
[Round "10"]
[TimeControl "180+1"]
[Date "2022.05.10"]
[WhiteClock "0:01:38"]
[BlackClock "0:00:33"]

1. e4 {[%clk 0:02:54]}  e6 {[%clk 0:02:59]} 2. d4 {[%clk 0:02:51]}  d5 {[%clk 0:03:00]} 3. Bd3 {[%clk 0:02:52]}  dxe4 {[%clk 0:02:59]} 4. Bxe4 {[%clk 0:02:52]}  Nf6 {[%clk 0:03:00]} 5. Bf3 {[%clk 0:02:51]}  Nbd7 {[%clk 0:03:00]} 6. Ne2 {[%clk 0:02:50]}  Bd6 {[%clk 0:02:59]} 7. O-O {[%clk 0:02:50]}  O-O {[%clk 0:02:59]} 8. c4 {[%clk 0:02:49]}  c6 {[%clk 0:02:57]} 9. Nbc3 {[%clk 0:02:46]}  e5 {[%clk 0:02:57]} 10. h3 {[%clk 0:02:42]}  exd4 {[%clk 0:02:56]} 11. Nxd4 {[%clk 0:02:42]}  Ne5 {[%clk 0:02:53]} 12. Be2 {[%clk 0:02:42]}  Re8 {[%clk 0:02:48]} 13. Bg5 {[%clk 0:02:40]}  h6 {[%clk 0:02:46]} 14. Bh4 {[%clk 0:02:40]}  Ng6 {[%clk 0:02:45]} 15. Bg3 {[%clk 0:02:33]}  Bxg3 {[%clk 0:02:42]} 16. fxg3 {[%clk 0:02:34]}  Qb6 {[%clk 0:02:33]} 17. Na4 {[%clk 0:02:31]}  Qc7 {[%clk 0:02:28]} 18. Kh2 {[%clk 0:02:23]}  Ne4 {[%clk 0:02:26]} 19. Qd3 {[%clk 0:02:14]}  Ne5 {[%clk 0:02:18]} 20. Qxe4 {[%clk 0:02:05]}  Ng4+ {[%clk 0:02:18]} 21. Qxg4 {[%clk 0:02:05]}  Bxg4 {[%clk 0:02:18]} 22. Bxg4 {[%clk 0:02:06]}  Re4 {[%clk 0:02:05]} 23. Nf5 {[%clk 0:02:01]}  Rxc4 {[%clk 0:02:01]} 24. Nc3 {[%clk 0:02:01]}  Re8 {[%clk 0:01:52]} 25. Rad1 {[%clk 0:01:59]}  Qe5 {[%clk 0:01:43]} 26. Nd6 {[%clk 0:01:56]}  Rxc3 {[%clk 0:01:28]} 27. bxc3 {[%clk 0:01:52]}  Rf8 {[%clk 0:01:21]} 28. Nxf7 {[%clk 0:01:50]}  Qe7 {[%clk 0:01:07]} 29. Rd7 {[%clk 0:01:48]}  Qe3 {[%clk 0:00:44]} 30. Rxb7 {[%clk 0:01:45]}  Re8 {[%clk 0:00:37]} 31. Nd6 {[%clk 0:01:40]}  Re7 {[%clk 0:00:33]} 32. Nf5 {[%clk 0:01:38]} 1-0


[Site "https://www.chess.com"]

[Event "Titled Tuesday Blitz May 10 Late 2022"]
[White "Prohorov, Olexandr"]
[Black "Bifulco, Michel"]
[WhiteFideId "14105578"]
[BlackFideId "828580"]
[WhiteElo "1993"]
[BlackElo "2165"]
[Result "1-0"]
[Round "10"]
[TimeControl "180+1"]
[Date "2022.05.11"]
[WhiteClock "0:01:30"]
[BlackClock "0:01:11"]

1. d4 {[%clk 0:03:00]}  Nf6 {[%clk 0:02:59]} 2. c4 {[%clk 0:03:00]}  g6 {[%clk 0:03:00]} 3. Nc3 {[%clk 0:02:59]}  Bg7 {[%clk 0:03:00]} 4. Nf3 {[%clk 0:02:59]}  O-O {[%clk 0:03:00]} 5. e4 {[%clk 0:02:59]}  d6 {[%clk 0:03:01]} 6. Be2 {[%clk 0:02:59]}  e5 {[%clk 0:03:01]} 7. O-O {[%clk 0:02:59]}  Nc6 {[%clk 0:03:02]} 8. Re1 {[%clk 0:02:59]}  exd4 {[%clk 0:02:57]} 9. Nxd4 {[%clk 0:02:59]}  Nxd4 {[%clk 0:02:58]} 10. Qxd4 {[%clk 0:02:58]}  Re8 {[%clk 0:02:58]} 11. Qd3 {[%clk 0:02:24]}  Be6 {[%clk 0:02:53]} 12. Be3 {[%clk 0:02:21]}  Ng4 {[%clk 0:02:49]} 13. Bxg4 {[%clk 0:02:18]}  Bxg4 {[%clk 0:02:50]} 14. Bd4 {[%clk 0:02:18]}  Bh6 {[%clk 0:02:44]} 15. Nd5 {[%clk 0:02:13]}  Re6 {[%clk 0:02:22]} 16. f3 {[%clk 0:02:07]}  c6 {[%clk 0:02:16]} 17. Ne3 {[%clk 0:02:01]}  Bh5 {[%clk 0:02:11]} 18. g4 {[%clk 0:02:02]}  Qg5 {[%clk 0:02:03]} 19. Kh1 {[%clk 0:01:57]}  c5 {[%clk 0:01:59]} 20. Bc3 {[%clk 0:01:53]}  Qh4 {[%clk 0:01:40]} 21. gxh5 {[%clk 0:01:49]}  Bf4 {[%clk 0:01:39]} 22. Qc2 {[%clk 0:01:42]}  Qxh5 {[%clk 0:01:33]} 23. Qg2 {[%clk 0:01:36]}  f5 {[%clk 0:01:22]} 24. Nd5 {[%clk 0:01:33]}  fxe4 {[%clk 0:01:11]} 25. Nxf4 {[%clk 0:01:30]} 1-0


[Site "https://www.chess.com"]

[Event "Titled Tuesday Blitz May 10 Late 2022"]
[White "Remolar Gallen, Jose"]
[Black "Tanenbaum, Zachary"]
[WhiteFideId "2215187"]
[BlackFideId "2060850"]
[WhiteElo "2205"]
[BlackElo "2168"]
[Result "0-1"]
[Round "10"]
[TimeControl "180+1"]
[Date "2022.05.11"]
[WhiteClock "0:00:18"]
[BlackClock "0:01:56"]

1. e4 {[%clk 0:03:00]}  e5 {[%clk 0:03:00]} 2. f4 {[%clk 0:03:01]}  Nc6 {[%clk 0:03:01]} 3. Nf3 {[%clk 0:03:02]}  d6 {[%clk 0:03:01]} 4. Bc4 {[%clk 0:03:01]}  Nf6 {[%clk 0:03:02]} 5. O-O {[%clk 0:03:00]}  Bg4 {[%clk 0:03:03]} 6. h3 {[%clk 0:02:58]}  Bxf3 {[%clk 0:02:57]} 7. Qxf3 {[%clk 0:02:59]}  Nd4 {[%clk 0:02:58]} 8. Qd1 {[%clk 0:02:59]}  Be7 {[%clk 0:02:59]} 9. c3 {[%clk 0:02:58]}  Nc6 {[%clk 0:02:58]} 10. d4 {[%clk 0:02:50]}  exd4 {[%clk 0:02:57]} 11. cxd4 {[%clk 0:02:51]}  Nxe4 {[%clk 0:02:56]} 12. d5 {[%clk 0:02:33]}  Nb8 {[%clk 0:02:56]} 13. Qd4 {[%clk 0:01:56]}  Nf6 {[%clk 0:02:56]} 14. Nc3 {[%clk 0:01:55]}  O-O {[%clk 0:02:57]} 15. Be3 {[%clk 0:01:51]}  Nbd7 {[%clk 0:02:57]} 16. Rae1 {[%clk 0:01:45]}  Re8 {[%clk 0:02:58]} 17. g4 {[%clk 0:01:40]}  g6 {[%clk 0:02:35]} 18. Bf2 {[%clk 0:01:18]}  a6 {[%clk 0:02:33]} 19. a4 {[%clk 0:01:17]}  Bf8 {[%clk 0:02:28]} 20. Bh4 {[%clk 0:01:16]}  Bg7 {[%clk 0:02:29]} 21. Re6 {[%clk 0:00:47]}  Nxg4 {[%clk 0:01:54]} 22. Qxg7+ {[%clk 0:00:29]}  Kxg7 {[%clk 0:01:55]} 23. Bxd8 {[%clk 0:00:28]}  fxe6 {[%clk 0:01:56]} 24. dxe6 {[%clk 0:00:18]}  Rexd8 {[%clk 0:01:56]} 25. exd7 {[%clk 0:00:18]}  Ne3 {[%clk 0:01:56]} 0-1


[Site "https://www.chess.com"]

[Event "Titled Tuesday Blitz May 10 Late 2022"]
[White "Rosen, Eric"]
[Black "Bluebaum, Matthias"]
[WhiteFideId "2032562"]
[BlackFideId "24651516"]
[WhiteElo "2362"]
[BlackElo "2556"]
[Result "0-1"]
[Round "10"]
[TimeControl "180+1"]
[Date "2022.05.10"]
[WhiteClock "0:00:01"]
[BlackClock "0:00:31"]

1. d4 {[%clk 0:03:00]}  Nf6 {[%clk 0:02:59]} 2. Bf4 {[%clk 0:03:01]}  c5 {[%clk 0:02:59]} 3. e3 {[%clk 0:03:01]}  d5 {[%clk 0:02:59]} 4. Nf3 {[%clk 0:03:01]}  Nc6 {[%clk 0:02:58]} 5. Nbd2 {[%clk 0:03:02]}  cxd4 {[%clk 0:02:58]} 6. exd4 {[%clk 0:03:02]}  Qb6 {[%clk 0:02:59]} 7. Nb3 {[%clk 0:03:01]}  Bf5 {[%clk 0:03:00]} 8. c3 {[%clk 0:02:59]}  e6 {[%clk 0:03:00]} 9. Be2 {[%clk 0:03:00]}  h6 {[%clk 0:02:59]} 10. O-O {[%clk 0:02:59]}  Be7 {[%clk 0:03:00]} 11. h3 {[%clk 0:02:59]}  O-O {[%clk 0:03:00]} 12. Re1 {[%clk 0:02:57]}  Rfc8 {[%clk 0:03:00]} 13. a4 {[%clk 0:02:47]}  a6 {[%clk 0:03:00]} 14. a5 {[%clk 0:02:38]}  Qd8 {[%clk 0:02:59]} 15. Bd3 {[%clk 0:02:27]}  Bxd3 {[%clk 0:02:58]} 16. Qxd3 {[%clk 0:02:28]}  b6 {[%clk 0:02:58]} 17. axb6 {[%clk 0:02:13]}  Qxb6 {[%clk 0:02:59]} 18. Nfd2 {[%clk 0:02:14]}  Qb5 {[%clk 0:02:50]} 19. Qxb5 {[%clk 0:01:55]}  axb5 {[%clk 0:02:51]} 20. Rxa8 {[%clk 0:01:56]}  Rxa8 {[%clk 0:02:50]} 21. Ra1 {[%clk 0:01:56]}  Rxa1+ {[%clk 0:02:49]} 22. Nxa1 {[%clk 0:01:57]}  b4 {[%clk 0:02:49]} 23. Nc2 {[%clk 0:01:51]}  bxc3 {[%clk 0:02:48]} 24. bxc3 {[%clk 0:01:52]}  Nd7 {[%clk 0:02:44]} 25. Kf1 {[%clk 0:01:51]}  Kf8 {[%clk 0:02:43]} 26. Ke2 {[%clk 0:01:51]}  f6 {[%clk 0:02:33]} 27. Ne3 {[%clk 0:01:44]}  Kf7 {[%clk 0:02:28]} 28. Bg3 {[%clk 0:01:42]}  h5 {[%clk 0:02:26]} 29. f3 {[%clk 0:01:40]}  g5 {[%clk 0:02:26]} 30. Kd3 {[%clk 0:01:35]}  Nf8 {[%clk 0:02:24]} 31. c4 {[%clk 0:01:25]}  Nb4+ {[%clk 0:01:56]} 32. Kc3 {[%clk 0:01:25]}  dxc4 {[%clk 0:01:57]} 33. Ndxc4 {[%clk 0:01:07]}  Nd7 {[%clk 0:01:54]} 34. Bd6 {[%clk 0:01:04]}  Nd5+ {[%clk 0:01:43]} 35. Nxd5 {[%clk 0:01:00]}  exd5 {[%clk 0:01:44]} 36. Bxe7 {[%clk 0:01:01]}  Kxe7 {[%clk 0:01:45]} 37. Ne3 {[%clk 0:01:00]}  Ke6 {[%clk 0:01:45]} 38. Kd3 {[%clk 0:00:39]}  Nf8 {[%clk 0:01:45]} 39. g3 {[%clk 0:00:35]}  Ng6 {[%clk 0:01:44]} 40. Ng2 {[%clk 0:00:30]}  Ne7 {[%clk 0:01:30]} 41. g4 {[%clk 0:00:28]}  h4 {[%clk 0:01:28]} 42. f4 {[%clk 0:00:28]}  Nc8 {[%clk 0:01:24]} 43. Ke3 {[%clk 0:00:12]}  Nd6 {[%clk 0:01:24]} 44. Ne1 {[%clk 0:00:11]}  Ne4 {[%clk 0:01:21]} 45. Nd3 {[%clk 0:00:04]}  Kd6 {[%clk 0:01:16]} 46. fxg5 {[%clk 0:00:05]}  fxg5 {[%clk 0:01:17]} 47. Ne5 {[%clk 0:00:05]}  Kc7 {[%clk 0:01:11]} 48. Kd3 {[%clk 0:00:05]}  Nf2+ {[%clk 0:01:07]} 49. Ke3 {[%clk 0:00:05]}  Nxh3 {[%clk 0:01:07]} 50. Kf3 {[%clk 0:00:06]}  Kd6 {[%clk 0:01:04]} 51. Nf7+ {[%clk 0:00:02]}  Ke6 {[%clk 0:01:04]} 52. Nd8+ {[%clk 0:00:03]}  Ke7 {[%clk 0:01:03]} 53. Nc6+ {[%clk 0:00:03]}  Kf6 {[%clk 0:01:02]} 54. Nb4 {[%clk 0:00:03]}  Nf4 {[%clk 0:01:02]} 55. Nc6 {[%clk 0:00:01]}  Ne6 {[%clk 0:01:02]} 56. Ke3 {[%clk 0:00:01]}  Nf4 {[%clk 0:00:58]} 57. Kf3 {[%clk 0:00:01]}  Ke6 {[%clk 0:00:59]} 58. Ne5 {[%clk 0:00:01]}  Ke7 {[%clk 0:00:57]} 59. Nc6+ {[%clk 0:00:02]}  Kf6 {[%clk 0:00:56]} 60. Nb4 {[%clk 0:00:02]}  h3 {[%clk 0:00:53]} 61. Kg3 {[%clk 0:00:02]}  Ke6 {[%clk 0:00:54]} 62. Nc6 {[%clk 0:00:02]}  Kd6 {[%clk 0:00:54]} 63. Ne5 {[%clk 0:00:02]}  Ke7 {[%clk 0:00:51]} 64. Nf3 {[%clk 0:00:02]}  Kf6 {[%clk 0:00:51]} 65. Ne5 {[%clk 0:00:03]}  Ne2+ {[%clk 0:00:52]} 66. Kxh3 {[%clk 0:00:03]}  Nxd4 {[%clk 0:00:53]} 67. Nd7+ {[%clk 0:00:02]}  Ke6 {[%clk 0:00:53]} 68. Nc5+ {[%clk 0:00:02]}  Ke5 {[%clk 0:00:51]} 69. Nd7+ {[%clk 0:00:03]}  Kd6 {[%clk 0:00:51]} 70. Nf6 {[%clk 0:00:03]}  Ne6 {[%clk 0:00:51]} 71. Kg3 {[%clk 0:00:02]}  Ke5 {[%clk 0:00:52]} 72. Nd7+ {[%clk 0:00:02]}  Kd4 {[%clk 0:00:44]} 73. Nf6 {[%clk 0:00:03]}  Nc7 {[%clk 0:00:40]} 74. Kf3 {[%clk 0:00:03]}  Kd3 {[%clk 0:00:40]} 75. Nh7 {[%clk 0:00:02]}  Ne6 {[%clk 0:00:40]} 76. Nf6 {[%clk 0:00:02]}  d4 {[%clk 0:00:40]} 77. Nd5 {[%clk 0:00:02]}  Kc4 {[%clk 0:00:39]} 78. Ke4 {[%clk 0:00:02]}  Nc5+ {[%clk 0:00:39]} 79. Ke5 {[%clk 0:00:03]}  Nd3+ {[%clk 0:00:39]} 80. Ke4 {[%clk 0:00:03]}  Nf2+ {[%clk 0:00:39]} 81. Ke5 {[%clk 0:00:03]}  Nxg4+ {[%clk 0:00:40]} 82. Ke4 {[%clk 0:00:03]}  Nf2+ {[%clk 0:00:41]} 83. Ke5 {[%clk 0:00:04]}  g4 {[%clk 0:00:37]} 84. Nb6+ {[%clk 0:00:05]}  Kc5 {[%clk 0:00:35]} 85. Nd7+ {[%clk 0:00:04]}  Kc6 {[%clk 0:00:31]} 86. Nf8 {[%clk 0:00:03]}  d3 {[%clk 0:00:31]} 87. Ne6 {[%clk 0:00:02]}  d2 {[%clk 0:00:31]} 88. Nd4+ {[%clk 0:00:02]}  Kb6 {[%clk 0:00:32]} 89. Ne6 {[%clk 0:00:02]}  d1=Q {[%clk 0:00:32]} 90. Kf6 {[%clk 0:00:02]}  Qd6 {[%clk 0:00:32]} 91. Kf7 {[%clk 0:00:01]}  Qxe6+ {[%clk 0:00:31]} 0-1


[Site "https://www.chess.com"]

[Event "Titled Tuesday Blitz May 10 Late 2022"]
[White "Shapiro, Daniel"]
[Black "Carrasco Miranda, Andres"]
[WhiteFideId "2001780"]
[BlackFideId "3405990"]
[WhiteElo "2285"]
[BlackElo "2177"]
[Result "0-1"]
[Round "10"]
[TimeControl "180+1"]
[Date "2022.05.11"]
[WhiteClock "0:00:01"]
[BlackClock "0:00:08"]

1. d4 {[%clk 0:03:00]}  Nf6 {[%clk 0:02:58]} 2. c4 {[%clk 0:03:00]}  e6 {[%clk 0:02:58]} 3. g3 {[%clk 0:03:00]}  Bb4+ {[%clk 0:02:57]} 4. Nd2 {[%clk 0:02:57]}  c5 {[%clk 0:02:56]} 5. a3 {[%clk 0:02:50]}  Bxd2+ {[%clk 0:02:54]} 6. Qxd2 {[%clk 0:02:50]}  cxd4 {[%clk 0:02:52]} 7. Qxd4 {[%clk 0:02:39]}  O-O {[%clk 0:02:49]} 8. Bg2 {[%clk 0:02:39]}  Nc6 {[%clk 0:02:44]} 9. Qd6 {[%clk 0:02:31]}  Ne8 {[%clk 0:02:39]} 10. Qd2 {[%clk 0:02:28]}  Ne5 {[%clk 0:02:27]} 11. b3 {[%clk 0:02:24]}  f5 {[%clk 0:02:03]} 12. Bb2 {[%clk 0:02:21]}  Nc6 {[%clk 0:02:01]} 13. Nf3 {[%clk 0:02:14]}  Nf6 {[%clk 0:01:58]} 14. O-O {[%clk 0:01:48]}  Ne4 {[%clk 0:01:54]} 15. Qd3 {[%clk 0:01:46]}  d5 {[%clk 0:01:43]} 16. cxd5 {[%clk 0:01:38]}  Qxd5 {[%clk 0:01:44]} 17. Qxd5 {[%clk 0:01:35]}  exd5 {[%clk 0:01:45]} 18. Rfd1 {[%clk 0:01:30]}  Be6 {[%clk 0:01:45]} 19. Nd4 {[%clk 0:01:29]}  Nxd4 {[%clk 0:01:45]} 20. Bxd4 {[%clk 0:01:24]}  Rfc8 {[%clk 0:01:40]} 21. Rac1 {[%clk 0:01:23]}  a6 {[%clk 0:01:39]} 22. a4 {[%clk 0:01:17]}  b5 {[%clk 0:01:32]} 23. a5 {[%clk 0:01:15]}  Kf7 {[%clk 0:01:21]} 24. e3 {[%clk 0:01:07]}  g5 {[%clk 0:01:19]} 25. f3 {[%clk 0:01:01]}  Nf6 {[%clk 0:01:11]} 26. Bf1 {[%clk 0:00:53]}  g4 {[%clk 0:01:04]} 27. fxg4 {[%clk 0:00:45]}  fxg4 {[%clk 0:01:02]} 28. Bd3 {[%clk 0:00:43]}  Ne4 {[%clk 0:01:02]} 29. Rf1+ {[%clk 0:00:34]}  Ke7 {[%clk 0:01:01]} 30. Rxc8 {[%clk 0:00:31]}  Rxc8 {[%clk 0:00:59]} 31. Rf4 {[%clk 0:00:28]}  Rc1+ {[%clk 0:00:53]} 32. Kg2 {[%clk 0:00:23]}  Kd6 {[%clk 0:00:46]} 33. Rf8 {[%clk 0:00:16]}  Rd1 {[%clk 0:00:43]} 34. Bxe4 {[%clk 0:00:15]}  dxe4 {[%clk 0:00:43]} 35. b4 {[%clk 0:00:15]}  Bc4 {[%clk 0:00:40]} 36. Ra8 {[%clk 0:00:14]}  Rd2+ {[%clk 0:00:36]} 37. Kg1 {[%clk 0:00:14]}  Rd1+ {[%clk 0:00:36]} 38. Kf2 {[%clk 0:00:14]}  Rd2+ {[%clk 0:00:36]} 39. Ke1 {[%clk 0:00:14]}  Re2+ {[%clk 0:00:32]} 40. Kd1 {[%clk 0:00:14]}  Rxh2 {[%clk 0:00:31]} 41. Rxa6+ {[%clk 0:00:14]}  Kd5 {[%clk 0:00:31]} 42. Ra8 {[%clk 0:00:11]}  Bb3+ {[%clk 0:00:30]} 43. Kc1 {[%clk 0:00:10]}  Kc4 {[%clk 0:00:30]} 44. Rc8+ {[%clk 0:00:08]}  Kxb4 {[%clk 0:00:28]} 45. a6 {[%clk 0:00:08]}  Ra2 {[%clk 0:00:27]} 46. a7 {[%clk 0:00:08]}  Bd5 {[%clk 0:00:25]} 47. Rc5 {[%clk 0:00:05]}  Bc4 {[%clk 0:00:21]} 48. Rc8 {[%clk 0:00:04]}  Bd5 {[%clk 0:00:21]} 49. Rc5 {[%clk 0:00:04]}  Bb7 {[%clk 0:00:17]} 50. Rc7 {[%clk 0:00:03]}  Bd5 {[%clk 0:00:12]} 51. Rd7 {[%clk 0:00:03]}  Bc4 {[%clk 0:00:10]} 52. Rd8 {[%clk 0:00:03]}  h5 {[%clk 0:00:09]} 53. a8=Q {[%clk 0:00:02]}  Kb3 {[%clk 0:00:08]} 54. Qxa2+ {[%clk 0:00:01]}  Kxa2 {[%clk 0:00:09]} 55. Rb8 {[%clk 0:00:01]}  Kb3 {[%clk 0:00:08]} 56. Bc5 {[%clk 0:00:01]}  Kc3 {[%clk 0:00:07]} 57. Bd4+ {[%clk 0:00:01]}  Kd3 {[%clk 0:00:08]} 0-1


[Site "https://www.chess.com"]